bitfinex/quotes_ETHUSD_20250731
["timestamp","ask_amount","ask_price","bid_price","bid_amount"]
[1753983103386,1e-08,3783.5,3783.4,12.41450586]
[1753983103553,1e-08,3783.5,3783.4,16.29150586]
[1753983103886,1e-08,3783.5,3783.4,16.75050586]
[1753983104180,1e-08,3783.5,3783.4,12.56650586]
[1753983104382,1e-08,3783.5,3783.4,11.23050586]
[1753983104568,1e-08,3783.5,3783.4,11.43899999]
[1753983104983,1e-08,3783.5,3783.4,7.183]
[1753983105285,1e-08,3783.5,3783.4,3.0]
[1753983105487,1e-08,3783.5,3783.4,7.183]
[1753983105781,0.002,3783.8,3783.6,3.0]
[1753983106019,2.64484581,3783.8,3783.7,7.183]
[1753983106185,2.64298551,3783.6,3783.5,6.99999999]
[1753983106368,0.002,3783.8,3783.5,11.18299999]
[1753983106544,1.2977,3783.7,3783.5,11.18299999]
[1753983106744,2.64485565,3783.8,3783.6,4.183]
[1753983106979,0.002,3783.8,3783.6,4.183]
[1753983107176,2.64291566,3783.7,3783.6,4.183]
[1753983107375,3.94061566,3783.7,3783.6,4.183]
[1753983107581,1.2977,3783.7,3783.5,6.99999999]
[1753983107900,1.2977,3783.7,3783.6,4.183]
[1753983108183,0.002,3783.8,3783.6,4.183]
[1753983108505,0.002,3783.8,3783.7,2.64291566]
[1753983108690,0.002,3783.8,3783.7,3.94921566]
[1753983108857,0.002,3783.8,3783.7,3.0]
[1753983109183,1.2997,3783.8,3783.7,4.183]
[1753983109385,2.64324413,3783.3,3782.3,2.64389109]
[1753983109585,3.940636,3783.7,3782.9,2.64342632]
[1753983109777,3.94062265,3783.7,3783.0,4.183]
[1753983109946,2.64310296,3783.5,3783.0,4.183]
[1753983110148,0.8385,3783.5,3783.0,6.82639496]
[1753983110385,0.8385,3783.5,3783.0,4.183]
[1753983110589,0.4612,3783.8,3783.1,6.82632973]
[1753983110788,0.4612,3783.8,3783.1,4.183]
[1753983110944,3.48143868,3783.7,3782.9,2.64344792]
[1753983111290,0.8385,3783.7,3783.0,4.183]
[1753983111581,0.8385,3783.7,3783.2,2.64325727]
[1753983111780,0.8385,3783.7,3783.3,4.183]
[1753983112012,2.64317744,3783.4,3782.7,2.64359997]
[1753983112147,1.2977,3783.6,3782.8,4.183]
[1753983112347,3.94069982,3783.6,3782.9,3.0]
[1753983112571,0.002,3783.8,3782.9,3.0]
[1753983112572,0.002,3783.8,3783.2,3.0]
[1753983112784,0.002,3783.8,3783.3,4.183]
[1753983113603,0.002,3783.8,3783.2,2.64325562]
[1753983113604,0.002,3783.8,3783.4,4.183]
[1753983114111,0.002,3783.8,3783.6,2.64298218]
[1753983114354,0.002,3783.8,3783.7,6.82591566]
[1753983114626,0.002,3783.8,3783.7,4.183]
[1753983114979,0.002,3783.8,3783.7,4.315]
[1753983115225,0.002,3783.8,3783.7,6.95791566]
[1753983115523,0.002,3783.8,3783.7,16.76602707]
[1753983117376,0.042,3783.9,3783.8,5.64284581]
[1753983117576,1e-08,3784.0,3783.9,6.19277597]
[1753983117836,1e-08,3784.5,3784.4,3.1924268]
[1753983118127,1e-08,3784.5,3784.4,17.30593311]
[1753983118412,1e-08,3784.5,3784.4,18.74423311]
[1753983119387,1e-08,3784.5,3784.4,14.56223311]
[1753983119717,1e-08,3784.5,3784.4,18.31513311]
[1753983119916,1e-08,3784.5,3784.4,12.70593311]
[1753983120119,1e-08,3784.5,3784.4,16.88793311]
[1753983120309,1e-08,3784.5,3784.4,18.74423311]
[1753983120709,1e-08,3784.5,3784.4,14.56223311]
[1753983121007,1e-08,3784.5,3784.4,13.662]
[1753983121234,1e-08,3784.5,3784.4,18.0287268]
[1753983121448,1e-08,3784.5,3784.4,18.1597268]
[1753983122155,1e-08,3784.5,3784.4,22.41572679]
[1753983122449,1e-08,3784.5,3784.4,18.23472679]
[1753983122751,1e-08,3784.5,3784.4,23.62791636]
[1753983123855,0.04,3784.9,3784.6,6.19228716]
[1753983124013,0.04,3784.9,3784.8,5.64214753]
[1753983124217,0.04,3784.9,3784.8,6.32414753]
[1753983124412,0.04,3784.9,3784.8,7.63044753]
[1753983124619,0.04,3784.9,3784.8,12.62936655]
[1753983124929,0.04,3784.9,3784.8,8.56001902]
[1753983125257,0.04,3784.9,3784.8,11.20216655]
[1753983125965,0.04,3784.9,3784.8,7.02116655]
[1753983126163,0.04,3784.9,3784.8,11.20216655]
[1753983126670,0.04,3784.9,3784.8,3.132]
[1753983126961,3.97977772,3784.9,3784.8,0.132]
[1753983127260,3.97977772,3784.9,3784.8,4.312]
[1753983128621,0.8785,3784.9,3784.8,4.312]
[1753983128821,0.04,3784.9,3784.8,4.7432]
[1753983129061,3.97977772,3784.9,3784.8,4.313]
[1753983129366,3.97977772,3784.9,3784.4,6.348]
[1753983129367,2.64221734,3784.7,3784.6,4.181]
[1753983129657,3.93991734,3784.7,3784.6,4.181]
[1753983130157,4.18421539,3784.7,3784.6,4.181]
[1753983130458,4.88425168,3784.7,3784.6,4.181]
[1753983130860,4.63995363,3784.7,3784.6,4.181]
[1753983131428,4.88436201,3784.7,3784.6,4.181]
[1753983131740,2.64221734,3784.7,3784.6,4.181]
[1753983132057,3.48071734,3784.7,3784.6,4.313]
[1753983132231,2.64221734,3784.7,3784.6,4.313]
[1753983132622,2.6421521,3784.8,3784.6,4.313]
[1753983132865,0.042,3784.9,3784.6,4.7443]
[1753983133024,2.64221734,3784.7,3784.6,4.7443]
[1753983133221,2.64221734,3784.7,3784.6,4.181]
[1753983133549,3.93991734,3784.7,3784.6,4.313]
[1753983133723,3.93991734,3784.7,3784.6,0.132]
[1753983133922,1.2977,3784.7,3784.6,4.181]
[1753983134123,3.93991734,3784.7,3784.6,4.181]
[1753983135260,2.68410527,3784.9,3784.6,4.313]
[1753983135261,0.042,3784.9,3784.6,4.313]
[1753983135468,2.64221734,3784.7,3784.6,4.313]
[1753983135669,2.64221734,3784.7,3784.6,4.181]
[1753983135823,2.64221734,3784.7,3784.6,4.313]
[1753983136195,0.042,3784.9,3784.6,4.181]
[1753983136550,0.042,3784.9,3784.8,0.132]
[1753983136965,2.68407772,3784.9,3784.8,0.132]
[1753983138451,3.53227772,3784.9,3784.8,0.132]
[1753983138683,0.042,3784.9,3784.8,2.77414753]
[1753983138885,0.042,3784.9,3784.8,2.02630081]
[1753983139190,0.042,3784.9,3784.8,1.17670081]
[1753983139389,0.042,3784.9,3784.8,0.132]
[1753983139593,2.68407772,3784.9,3784.8,4.312]
[1753983139811,2.64258153,3784.2,3783.4,0.8496]
[1753983140032,2.64298551,3783.6,3783.5,1e-08]
[1753983140331,2.64298551,3783.6,3783.1,0.001]
[1753983140332,2.64326496,3783.2,3783.1,1e-08]
[1753983140470,3.0,3783.2,3782.1,0.041]
[1753983140673,2.64396383,3782.2,3782.1,1e-08]
[1753983140972,2.64396383,3782.2,3779.2,3.05938132]
[1753983140973,2.64515275,3780.5,3780.4,4.18]
[1753983141173,2.64515275,3780.5,3779.4,0.8496]
[1753983141174,2.64536267,3780.2,3780.1,4.18]
[1753983141502,3.93416267,3780.2,3780.1,4.18]
[1753983144160,2.64591724,3779.5,3778.1,7.68042235]
[1753983144498,1.2888,3779.7,3778.6,2.6464344]
[1753983144790,0.03307228,3779.6,3778.7,4.186]
[1753983144993,1.2888,3779.7,3778.7,4.186]
[1753983145453,0.8482,3779.7,3778.7,6.83241131]
[1753983145650,0.03307228,3779.6,3778.6,7.8496]
[1753983145854,0.8482,3779.7,3778.7,4.186]
[1753983146055,1.19758544,3779.7,3778.7,4.186]
[1753983146760,0.8482,3779.7,3778.8,2.64627367]
[1753983146970,0.4406,3780.1,3778.9,2.64627272]
[1753983147389,2.67862626,3780.0,3778.8,3.0]
[1753983147573,0.8482,3779.9,3778.7,3.4475]
[1753983147759,0.4406,3779.8,3778.8,4.187]
[1753983148089,0.43218697,3779.7,3778.8,4.187]
[1753983148276,2.6459476,3779.4,3778.8,4.187]
[1753983148477,0.8482,3779.6,3778.8,4.187]
[1753983149267,0.43218697,3779.7,3778.8,4.187]
[1753983149466,0.8482,3780.4,3778.9,4.2971]
[1753983149660,0.132,3780.6,3779.6,0.132]
[1753983149877,0.132,3780.6,3780.0,0.132]
[1753983150278,2.77708737,3780.6,3780.0,0.132]
[1753983150604,0.132,3780.6,3780.0,0.132]
[1753983151111,2.64543266,3780.1,3780.0,0.132]
[1753983151331,2.64543266,3780.1,3779.4,4.187]
[1753983151332,2.48816648,3780.1,3779.4,4.187]
[1753983151510,2.62016648,3780.1,3779.4,4.319]
[1753983151902,1.19936648,3780.1,3779.7,0.132]
[1753983152209,2.77723524,3780.4,3779.7,0.132]
[1753983152430,0.8482,3780.3,3779.7,0.132]
[1753983152639,2.64564262,3779.8,3779.7,0.132]
[1753983152805,2.64579227,3779.6,3779.1,4.189]
[1753983152996,1.22678923,3779.5,3779.1,4.189]
[1753983153193,1.1401,3779.5,3779.1,4.189]
[1753983153396,0.8482,3779.5,3779.1,4.189]
[1753983153835,2.6455838,3779.9,3779.1,4.6365]
[1753983154036,2.64522762,3780.4,3779.2,6.9431003]
[1753983154237,0.8482,3780.3,3779.2,3.0]
[1753983154539,2.64553462,3780.0,3779.2,3.0]
[1753983154918,2.64515567,3780.5,3779.3,2.64593499]
[1753983155275,0.8482,3780.7,3779.3,1.2971]
[1753983155437,2.64513321,3780.6,3779.4,2.14571]
[1753983155613,2.64513321,3780.6,3779.5,3.49545262]
[1753983155817,2.64503582,3780.7,3779.5,3.49545262]
[1753983156050,0.3,3781.1,3779.6,4.2971]
[1753983156260,2.64513827,3780.6,3779.7,6.83665714]
[1753983156460,0.3,3781.1,3779.8,4.2971]
[1753983156659,2.64481898,3781.0,3780.0,3.0]
[1753983156957,2.64487525,3780.9,3780.1,3.94250494]
[1753983157647,0.8482,3781.6,3780.1,1.2971]
[1753983157847,2.64456894,3781.4,3780.5,2.64509271]
[1753983158020,2.64459332,3781.3,3780.6,5.4861]
[1753983158360,2.64464787,3781.3,3780.6,5.4861]
[1753983158518,2.64446388,3781.5,3780.6,5.4861]
[1753983158715,2.64446388,3781.5,3780.6,1.2971]
[1753983158716,0.26444639,3781.5,3780.6,1.2971]
[1753983158915,2.64452319,3781.4,3780.7,4.188]
[1753983159149,0.26444639,3781.5,3780.7,4.188]
[1753983159349,2.64467383,3781.2,3780.7,4.188]
[1753983159549,2.64467383,3781.2,3780.7,5.0376]
[1753983159758,0.8482,3782.5,3780.8,4.2971]
[1753983159956,2.64417356,3781.9,3780.8,8.55309999]
[1753983160132,2.64442365,3781.6,3780.9,4.188]
[1753983160322,2.64452717,3781.4,3780.9,4.188]
[1753983160522,2.64447091,3781.5,3781.0,1.2971]
[1753983160743,2.64406172,3782.1,3781.1,1.2971]
[1753983160957,2.64450869,3781.5,3781.1,1.2971]
[1753983161167,1.06357527,3782.1,3781.1,1.2971]
[1753983161359,2.64461145,3781.3,3781.1,1.2971]
[1753983161844,2.64461145,3781.3,3781.1,0.8496]
[1753983162163,2.64478706,3781.1,3780.8,4.25599999]
[1753983162471,0.8482,3782.0,3780.9,5.4821]
[1753983162674,0.132,3782.0,3781.0,0.9816]
[1753983162832,2.64431107,3781.8,3781.1,2.64473301]
[1753983163034,0.132,3782.0,3781.2,1.2971]
[1753983163233,2.77612263,3782.0,3781.3,1.2971]
[1753983163438,2.64423833,3781.9,3781.4,4.187]
[1753983163638,2.6439723,3782.2,3781.9,0.132]
[1753983163875,2.6435433,3782.9,3782.1,2.64403373]
[1753983164083,2.64376035,3782.5,3782.4,0.132]
[1753983164263,0.132,3783.4,3782.8,0.132]
[1753983164449,2.6434047,3783.0,3782.9,4.187]
[1753983164836,2.64365016,3782.7,3782.4,1.2971]
[1753983165085,0.132,3783.7,3782.5,5.4831]
[1753983165241,2.6434047,3783.0,3782.6,0.132]
[1753983165445,2.6434047,3783.0,3781.9,3.0]
[1753983165446,2.64396355,3782.3,3781.9,3.0]
[1753983165757,2.64445325,3781.5,3781.3,7.2036]
[1753983165947,0.88124954,3782.2,3781.4,7.187]
[1753983166280,0.8482,3782.2,3781.4,7.319]
[1753983166464,2.64435018,3781.7,3781.4,7.187]
[1753983166670,0.40646691,3782.1,3781.8,0.132]
[1753983166991,2.64452319,3781.4,3781.3,6.354]
[1753983167282,2.64452319,3781.4,3781.3,10.545]
[1753983167838,3.05053984,3782.1,3781.3,10.545]
[1753983168038,0.30505398,3782.0,3781.3,10.545]
[1753983168248,2.64416926,3782.0,3781.9,0.132]
[1753983168781,2.64416926,3782.0,3781.9,4.324]
[1753983168986,2.64416926,3782.0,3781.9,0.132]
[1753983169286,2.64416926,3782.0,3781.9,4.324]
[1753983169583,2.64416926,3782.0,3781.9,4.192]
[1753983170483,2.64417356,3781.9,3781.8,0.132]
[1753983170683,3.1312369,3781.9,3781.8,4.322]
[1753983170855,2.64417356,3781.9,3781.8,4.322]
[1753983171972,2.64415193,3782.0,3781.8,5.1226]
[1753983172174,2.64417356,3781.9,3781.8,5.5653]
[1753983172384,0.002,3782.4,3782.2,0.132]
[1753983172689,2.64398636,3782.2,3781.8,1.3753]
[1753983172857,0.002,3782.4,3782.1,0.132]
[1753983173056,2.64397626,3782.2,3782.1,0.132]
[1753983173413,2.64391161,3782.3,3781.9,4.188]
[1753983173748,0.002,3782.4,3782.1,1.93163]
[1753983173870,0.002,3782.4,3782.1,1.79963]
[1753983174074,0.002,3782.4,3782.3,0.132]
[1753983174466,0.002,3782.4,3782.3,4.319]
[1753983174667,2.64582402,3782.4,3782.3,0.132]
[1753983174959,4.52182332,3782.4,3782.3,4.319]
[1753983175268,4.97614328,3782.4,3782.3,4.319]
[1753983175580,2.33231926,3782.4,3781.1,0.4427]
[1753983175783,2.64409004,3782.1,3781.7,0.132]
[1753983175985,2.64445325,3781.5,3781.4,0.132]
[1753983176182,2.64445325,3781.5,3781.4,4.319]
[1753983179726,2.64452319,3781.4,3780.5,3.0]
[1753983180044,2.64466306,3781.2,3780.3,1.2433]
[1753983180238,0.865,3781.4,3780.5,3.0]
[1753983180239,2.64490468,3780.9,3780.5,3.0]
[1753983180548,2.64485387,3781.0,3780.6,5.4273]
[1753983180846,7.184,3782.5,3781.2,2.64464317]
[1753983180847,0.132,3782.5,3781.2,2.64464317]
[1753983181014,0.61931222,3782.5,3781.3,4.184]
[1753983181342,0.48931222,3782.4,3781.4,3.0]
[1753983181515,3.13123721,3782.3,3781.6,2.64433146]
[1753983181725,0.002,3782.4,3781.4,3.55]
[1753983181726,2.64415873,3782.0,3781.4,3.55]
[1753983181926,0.002,3782.4,3781.9,0.132]
[1753983182228,2.64403373,3782.1,3782.0,4.184]
[1753983182436,2.64410364,3782.0,3781.9,0.132]
[1753983182619,2.64445133,3781.6,3780.9,0.4427]
[1753983182815,2.64445133,3781.6,3781.5,0.132]
[1753983183109,2.64428334,3781.8,3781.5,0.132]
[1753983183110,0.002,3782.4,3781.5,4.316]
[1753983183338,2.64438332,3781.6,3781.5,4.316]
[1753983183560,2.64438332,3781.6,3781.5,4.184]
[1753983183773,0.41116162,3782.4,3781.5,4.316]
[1753983183774,2.64433019,3781.7,3781.5,4.316]
[1753983184050,2.64438332,3781.6,3781.5,4.316]
[1753983184341,2.64433712,3781.7,3781.5,4.184]
[1753983184525,2.64389392,3782.3,3781.6,4.184]
[1753983184731,2.6443134,3781.7,3781.6,4.184]
[1753983185347,2.6443134,3781.7,3781.6,4.316]
[1753983186310,2.6443134,3781.7,3781.6,5.5593]
[1753983186657,2.6443134,3781.7,3781.6,0.132]
[1753983186854,2.6443134,3781.7,3781.6,4.316]
[1753983187213,0.41116162,3782.4,3781.6,5.5593]
[1753983187412,2.64422564,3781.9,3781.6,6.11523]
[1753983187658,2.6440302,3782.2,3781.7,1.2433]
[1753983187871,0.002,3782.4,3782.0,2.64408204]
[1753983188157,0.002,3782.4,3782.1,4.316]
[1753983188360,2.64391939,3782.3,3782.1,4.184]
[1753983188568,0.002,3782.4,3782.3,0.132]
[1753983188714,0.002,3782.4,3782.2,1.2433]
[1753983188938,0.002,3782.4,3782.2,1.3753]
[1753983189180,0.002,3782.4,3782.3,1.2433]
[1753983189833,0.002,3782.4,3782.3,4.79923]
[1753983190078,0.002,3782.4,3782.3,4.35653]
[1753983190372,0.002,3782.4,3782.3,7.44312392]
[1753983190557,0.002,3782.4,3782.3,4.79923]
[1753983190875,0.002,3782.4,3782.3,7.44312392]
[1753983191167,0.002,3782.4,3782.3,12.24912391]
[1753983191371,0.002,3782.4,3782.3,12.38112391]
[1753983191973,0.002,3783.0,3782.9,3.19347458]
[1753983192274,0.002,3783.0,3782.9,10.96117801]
[1753983192603,0.002,3783.0,3782.9,12.33647801]
[1753983192776,0.002,3783.0,3782.9,16.592478]
[1753983193171,0.002,3783.0,3782.9,16.460478]
[1753983193975,0.002,3783.0,3782.9,16.592478]
[1753983194177,0.002,3783.0,3782.9,12.408478]
[1753983194361,0.002,3783.0,3782.9,16.592478]
[1753983195074,0.002,3783.0,3782.9,12.33547801]
[1753983195849,0.002,3783.0,3782.9,8.15247801]
[1753983196061,0.002,3783.0,3782.9,12.33547801]
[1753983196274,0.002,3783.0,3782.9,15.15247801]
[1753983196514,0.002,3783.0,3782.9,7.132]
[1753983196742,0.002,3783.0,3782.9,11.315]
[1753983197251,2.6454047,3783.0,3782.9,7.132]
[1753983197451,3.4473047,3783.0,3782.9,11.315]
[1753983197598,3.4473047,3783.0,3782.9,11.183]
[1753983197599,3.8754047,3783.0,3782.9,11.183]
[1753983197799,4.5404727,3783.0,3782.9,11.183]
[1753983197998,4.1123727,3783.0,3782.9,11.183]
[1753983198199,0.002,3783.0,3782.9,4.183]
[1753983198402,2.6454047,3783.0,3782.9,4.315]
[1753983198702,0.002,3783.0,3782.9,5.5715]
[1753983198933,2.6454047,3783.0,3782.9,4.315]
[1753983199515,2.6454047,3783.0,3782.9,0.132]
[1753983199718,2.6454047,3783.0,3782.9,4.315]
[1753983200304,2.64347458,3782.9,3781.8,3.0]
[1753983200511,2.64375413,3782.5,3782.4,0.132]
[1753983200711,2.64375413,3782.5,3782.4,4.315]
[1753983200954,3.44565413,3782.5,3782.4,4.315]
[1753983201604,2.64375413,3782.5,3782.4,4.315]
[1753983202061,3.44565413,3782.5,3782.4,4.315]
[1753983202343,1.03915723,3783.0,3782.4,0.132]
[1753983202542,2.64375413,3782.5,3782.4,0.132]
[1753983203945,2.64375413,3782.5,3781.7,6.352]
[1753983203946,2.64417356,3781.9,3781.8,3.0]
[1753983204115,2.64417356,3781.9,3781.8,7.183]
[1753983204446,2.64411324,3782.0,3781.8,7.315]
[1753983204643,2.64417356,3781.9,3781.8,7.315]
[1753983204814,2.64354446,3782.8,3781.8,7.183]
[1753983205010,2.64375413,3782.5,3782.4,0.132]
[1753983205247,2.64375413,3782.5,3782.4,4.315]
[1753983206111,0.002,3783.0,3782.4,4.315]
[1753983206356,2.64375413,3782.5,3782.4,4.315]
[1753983208250,3.44565413,3782.5,3782.4,4.315]
[1753983208426,3.87375413,3782.5,3782.4,4.315]
[1753983208871,3.44565413,3782.5,3782.4,4.315]
[1753983209162,2.64375413,3782.5,3782.4,4.315]
[1753983209347,2.64375413,3782.5,3782.4,5.1412]
[1753983209546,2.64375413,3782.5,3782.4,4.315]
[1753983209746,0.002,3783.0,3782.4,5.1412]
[1753983210264,2.64375413,3782.5,3782.4,5.0092]
[1753983210446,2.64375413,3782.5,3782.4,4.183]
[1753983210762,2.64375413,3782.5,3782.4,4.315]
[1753983211082,3.97439674,3782.5,3782.4,4.315]
[1753983211256,3.97439674,3782.5,3782.4,0.132]
[1753983211424,3.97439674,3782.5,3782.4,4.315]
[1753983211627,3.17249674,3782.5,3782.4,4.315]
[1753983211821,3.44565413,3782.5,3782.4,0.132]
[1753983212025,3.90680105,3782.5,3782.4,1e-08]
[1753983212260,4.03880105,3782.5,3782.4,1e-08]
[1753983212443,4.25012409,3782.5,3782.4,1e-08]
[1753983214143,4.28317101,3782.5,3782.4,1e-08]
[1753983214339,5.61309749,3782.5,3782.4,1e-08]
[1753983214860,9.34692475,3782.1,3782.0,1e-08]
[1753983215061,3.02040369,3782.1,3782.0,1e-08]
[1753983215271,3.82230369,3782.1,3782.0,1e-08]
[1753983215462,5.19446189,3782.1,3782.0,1e-08]
[1753983216538,3.93141147,3782.1,3782.0,1e-08]
[1753983216775,2.64403373,3782.1,3782.0,1.25650001]
[1753983219278,2.64403373,3782.1,3782.0,4.31500001]
[1753983219663,2.64403373,3782.1,3782.0,5.14120001]
[1753983219868,2.64403373,3782.1,3782.0,5.57150001]
[1753983220066,0.132,3782.7,3782.0,5.57150001]
[1753983220261,0.132,3783.1,3782.1,0.8262]
[1753983220459,2.64368423,3782.6,3782.5,0.132]
[1753983220678,2.64368423,3782.6,3782.5,4.315]
[1753983221477,2.64403373,3782.1,3782.0,1e-08]
[1753983221656,2.64403373,3782.1,3782.0,4.18300001]
[1753983221854,2.64403373,3782.1,3782.0,4.31500001]
[1753983223362,4.43588266,3782.1,3782.0,1e-08]
[1753983223680,4.53483224,3782.1,3782.0,1e-08]
[1753983223870,4.10673224,3782.1,3782.0,1e-08]
[1753983224068,3.30483224,3782.1,3782.0,1e-08]
[1753983224241,2.64403373,3782.1,3782.0,1e-08]
[1753983224450,2.64417356,3781.9,3781.8,1e-08]
[1753983224655,9.59152885,3781.9,3781.8,1e-08]
[1753983224883,10.95352885,3781.9,3781.8,1e-08]
[1753983225662,3.82253783,3781.9,3781.8,1e-08]
[1753983225859,4.12830499,3781.9,3781.8,1e-08]
[1753983226046,2.88863783,3781.9,3781.8,1e-08]
[1753983226251,2.64417356,3781.9,3781.8,1e-08]
[1753983226772,2.64417356,3781.9,3781.8,1.38110001]
[1753983227177,2.64417356,3781.9,3781.8,0.13200001]
[1753983227486,2.64417356,3781.9,3781.8,4.18200001]
[1753983228164,3.18619429,3781.9,3781.8,1e-08]
[1753983228887,2.64417356,3781.9,3781.8,1e-08]
[1753983229189,2.64417356,3781.9,3781.8,0.81910001]
[1753983229390,2.64417356,3781.9,3781.8,1.24910001]
[1753983231361,2.64412365,3782.0,3781.8,1.24910001]
[1753983231588,2.64412365,3782.0,3781.9,1.2491]
[1753983231774,2.64390632,3782.3,3781.9,1.80541]
[1753983232104,2.64390632,3782.3,3782.0,1.2491]
[1753983232395,2.64354446,3782.8,3782.1,4.182]
[1753983232557,0.002,3783.0,3782.1,4.182]
[1753983232757,2.643846,3782.4,3782.2,2.448531]
[1753983232999,2.643846,3782.4,3782.3,1.2491]
[1753983233202,0.002,3782.9,3782.3,1.2491]
[1753983233357,0.002,3782.9,3782.2,8.45543099]
[1753983233358,0.002,3782.9,3782.4,3.89287494]
[1753983233560,0.002,3782.9,3782.5,4.69123059]
[1753983233940,0.002,3782.9,3782.6,3.0]
[1753983234199,0.002,3782.9,3782.6,4.2491]
[1753983234383,0.002,3782.9,3782.6,5.64366024]
[1753983234703,0.002,3782.9,3782.7,1.2491]
[1753983234872,0.002,3782.9,3782.8,0.89004842]
[1753983235074,0.002,3782.9,3782.8,1.2491]
[1753983235273,0.002,3782.9,3782.4,1.2491]
[1753983235274,2.64366381,3782.7,3782.4,1.2491]
[1753983235489,2.64366381,3782.7,3782.6,3.0]
[1753983235800,2.64366381,3782.7,3782.6,3.8191]
[1753983236163,0.002,3782.9,3782.6,3.8191]
[1753983236493,2.64548802,3782.9,3782.7,0.8191]
[1753983236817,0.8080443,3782.8,3781.8,1e-08]
[1753983237012,2.64367262,3782.7,3781.9,4.181]
[1753983237168,2.64375413,3782.5,3782.4,0.001]
[1753983237361,2.64375413,3782.5,3782.4,4.182]
[1753983238475,0.002,3782.9,3782.4,5.0011]
[1753983238733,2.64366887,3782.7,3782.5,1.2491]
[1753983238879,2.64366887,3782.7,3782.6,0.43]
[1753983239078,2.64354551,3782.8,3782.6,1.2491]
[1753983239280,2.64365808,3782.7,3782.5,3.0]
[1753983239475,2.64547997,3782.9,3782.5,3.0]
[1753983239682,0.002,3782.9,3782.6,0.768211]
[1753983239997,0.002,3782.9,3782.7,0.43]
[1753983240201,2.64547458,3782.9,3782.8,4.181]
[1753983241013,2.64547458,3782.9,3782.4,1.2501]
[1753983241014,2.64375413,3782.5,3782.4,0.001]
[1753983241211,2.64365937,3782.7,3782.4,7.181]
[1753983241465,2.64354446,3782.8,3782.5,4.2491]
[1753983241603,0.002,3782.9,3782.5,4.2491]
[1753983241799,0.002,3782.9,3782.7,3.0]
[1753983241974,0.002,3782.9,3782.6,3.89277807]
[1753983241975,0.002,3782.9,3782.8,4.18]
[1753983242412,2.64547458,3782.9,3782.8,5.4291]
[1753983242618,0.002,3782.9,3782.8,6.28521]
[1753983242815,0.002,3782.9,3782.8,4.9991]
[1753983243186,0.002,3782.9,3782.8,5.4291]
[1753983243381,0.002,3782.9,3782.8,8.9791]
[1753983243601,0.002,3782.9,3782.8,8.5611]
[1753983246504,0.002,3782.9,3782.8,8.1311]
[1753983246906,0.002,3782.9,3782.8,9.79981]
[1753983247116,0.002,3782.9,3782.8,12.44335446]
[1753983247414,0.002,3782.9,3782.8,12.99335446]
[1753983248328,0.002,3782.9,3782.8,10.34981]
[1753983248532,0.002,3782.9,3782.8,12.99335446]
[1753983248834,0.002,3782.9,3782.8,19.99335446]
[1753983248992,0.002,3782.9,3782.8,15.1301]
[1753983249421,0.002,3782.9,3782.8,15.5601]
[1753983250247,0.002,3782.9,3782.8,10.132]
[1753983250405,0.002,3782.9,3782.8,14.311]
[1753983250803,2.64547458,3782.9,3782.8,10.132]
[1753983250997,0.002,3782.9,3782.8,14.311]
[1753983251726,2.64547458,3782.9,3782.8,14.311]
[1753983251935,0.002,3782.9,3782.8,21.32725446]
[1753983252750,0.002,3782.9,3782.8,25.58325445]
[1753983255619,0.002,3782.9,3782.8,21.40425445]
[1753983255843,0.002,3782.9,3782.8,25.58225445]
[1753983259531,0.002,3782.9,3782.8,25.58125445]
[1753983259948,0.002,3782.9,3782.8,34.5123804]
[1753983261667,0.002,3782.9,3782.8,25.58125445]
[1753983262160,0.002,3782.9,3782.8,34.5123804]
[1753983262161,1e-08,3782.9,3782.8,34.5123804]
[1753983262327,1e-08,3783.4,3783.3,6.19319509]
[1753983262522,0.04,3783.9,3783.8,2.64284581]
[1753983262726,0.04,3783.9,3783.8,10.50084581]
[1753983262928,0.04,3783.9,3783.8,11.70514581]
[1753983264627,0.04,3783.9,3783.8,18.70514581]
[1753983265240,0.04,3783.9,3783.8,14.52914581]
[1753983265452,0.04,3783.9,3783.8,20.42235331]
[1753983265761,0.04,3783.9,3783.8,16.24635331]
[1753983266141,0.04,3783.9,3783.8,20.42135331]
[1753983266342,0.04,3783.9,3783.8,16.24635331]
[1753983266565,0.04,3783.9,3783.8,15.04205331]
[1753983266764,0.04,3783.9,3783.8,13.0242075]
[1753983267001,1.2705,3783.9,3783.8,13.0242075]
[1753983267135,1.2705,3783.9,3783.8,16.0242075]
[1753983267335,0.8426,3783.9,3783.8,16.0242075]
[1753983267550,0.04,3783.9,3783.8,18.66705331]
[1753983267962,0.04,3783.9,3783.8,13.0242075]
[1753983268145,0.8426,3783.9,3783.8,11.307]
[1753983268346,0.8426,3783.9,3783.8,14.307]
[1753983268542,0.04,3783.9,3783.8,14.307]
[1753983268756,0.04,3783.9,3783.8,16.94984581]
[1753983269049,0.04,3783.9,3783.8,17.49984581]
[1753983269252,0.04,3783.9,3783.8,20.35133665]
[1753983269450,0.04,3783.9,3783.8,20.79453665]
[1753983270679,0.04,3783.9,3783.8,12.77239084]
[1753983270837,0.04,3783.9,3783.8,17.49984581]
[1753983271239,0.04,3783.9,3783.8,14.857]
[1753983271658,0.04,3783.9,3783.8,17.49984581]
[1753983272375,0.04,3783.9,3783.8,18.70414581]
[1753983272955,0.04,3783.9,3783.8,22.9601458]
[1753983273153,0.04,3783.9,3783.8,25.5337558]
[1753983273394,0.04,3783.9,3783.8,25.5327558]